{"text_format":"3","workbook":"xlsx","n_sheets":1,"sheets":["岗位需求表"],"not_rendered":{"defined_names":2},"read":"whole","date_system":"1900"}

{"sheet":"岗位需求表","index":0,"n_rows":147,"n_cols":14,"rows_kept":147,"merged":[[0,0,0,13],[146,0,146,2],[146,6,146,13]]}
["六盘水市水城区2025年青年就业见习岗位需求信息表"]
["序号","单位名称","岗位名称","见习需求人数","工作职责","见习部门","学历要求","专业要求","工作地点","其他条件","单位性质","单位联系人","联系电话","备注"]
[{"$f":"ROW()-2","v":1},"贵州水城工业（集团）有限责任公司","见习会计",2,"协助完成日常的会计记账工作，包括凭证的录入、核对和整理；财务报表的编制。","财务部","本科","会计相关专业","水城经济开发区","无","国有企业","李雪",15308585522,"提供食宿"]
[{"$f":"ROW()-2","v":2},"贵州水城工业（集团）有限责任公司","见习融资专员",2,"不限","融资部","本科","金融、财经相关专业","水城经济开发区","无","国有企业","李雪",15308585522,"提供食宿"]
[3,"贵州水城工业（集团）有限责任公司","文员",2,"协助完成日常的办公室日常事务","综合办公室","本科","不限","水城经济开发区","无","国有企业","李雪",15308585522,"提供食宿"]
[4,"贵州水城工业（集团）有限责任公司","工程项目管理员",2,"1.负责工程项目现场管理工作；\n2.负责工程项目造价及审计工作","战略发展规划部","本科","土木工程、工程管理、工程造价等相关专业","水城经济开发区","无","国有企业","李雪",15308585522,"提供食宿"]
[5,"贵州水城工业（集团）有限责任公司","企管部工作人员",2,"资产统计管理、营运","企管部","本科","不限","水城经济开发区","无","国有企业","李雪",15308585522,"提供食宿"]
[6,"贵州石鑫玄武岩科技有限公司","会计",1,"审核原始单据编制记账凭证；配合完成会计核算，并出具财务报告；维护科控系统、开具发票、申报纳税；配合完成内外统计资料；调查问卷，清欠资料报送；完成领导交办的其他工作。","财务部","本科","会计学等相关专业","水城区水城经济开发区白云大道玄武岩科技产业园","无","国有企业","胡芳草",18875656420,"提供食宿"]
[7,"贵州石鑫玄武岩科技有限公司","技术员",1,"根据部门主管的安排，配合完成部门工作；配合生产部进行技术工作的，配合实施资料的收集与整理，外部合作的对接联络等；完成领导交办的其他工作等。","工程技术研究中心","本科","材料学、有机化学等相关专业","水城区水城经济开发区白云大道玄武岩科技产业园","无","国有企业","胡芳草",18875656420,"提供食宿"]
[8,"贵州石鑫玄武岩科技有限公司","销售员",3,"推广产品；了解客户意见、需求，建立客户资料、核查并建立台账；了解市场需求，项目工程进度并制定项目进度需求汇总；完成领导交办的其他任务。","市场营销部","本科","不限","水城区水城经济开发区白云大道玄武岩科技产业园","无","国有企业","胡芳草",18875656420,"提供食宿"]
[9,"六盘水市水城区供水有限公司","运行员",10,"负责供水相关事务","各部门及各供水管理所","大专及以上","不限专业（汉语言文学、行政管理、工商管理、人事管理、环境工程、环境科学、环境保护、工程管理、化学类、卫生检验、卫生检验与检疫等相关专业优先）","贵州省六盘水市水城区双水街道住武社区陈家寨组",null,"国有企业","肖诗婕",18984439352]
[10,"贵州金鸿实业（集团）有限责任公司","党建工作人员",2,"负责公司党委日常事务、公司党建、宣传等工作。","综合人事党建部","本科及以上","不限专业","贵州省六盘水市水城区双水街道塔山印象","中共党员（含预备党员）","国有企业","胡珊",18084387335,"提供早、中餐"]
[11,"贵州金鸿实业（集团）有限责任公司","法务工作人员",2,"1.起草和修改各类合同，参与重要或者复杂的合同谈判，提供法律意见；2.协助法律顾问处理公司各类诉讼案件；3.处理其他日常法务工作。","法律事务工作部","本科及以上","法学","贵州省六盘水市水城区双水街道塔山印象","持有国家法律职业资格证C证及以上优先","国有企业","胡珊",18084387335,"提供早、中餐"]
[12,"贵州金鸿实业（集团）有限责任公司","融资工作人员",1,"负责对接金融机构完成公司融资工作、维护与金融机构客情。","融资部","本科及以上","金融学、会计学、工程管理","贵州省六盘水市水城区双水街道塔山印象","无","国有企业","胡珊",18084387335,"提供早、中餐"]
[13,"贵州金鸿实业（集团）有限责任公司","项目部工作人员",1,"从事集团公司日常工作调度、资料报送、资料管理等工作。","项目部","本科及以上","土木工程、城乡规划、工程管理、工程造价、经济工程、投资学、水利水电工程、人文地理与城乡规划","贵州省六盘水市水城区双水街道塔山印象","无","国有企业","胡珊",18084387335,"提供早、中餐"]
[14,"贵州金鸿实业（集团）有限责任公司","国有资产管理人员",1,"确保国有资产的保值增值，防止资产流失，并依法合规管理国有资产","战略发展部","本科及以上","工商管理、工程管理、资产评估","贵州省六盘水市水城区双水街道塔山印象","无","国有企业","胡珊",18084387335,"提供早、中餐"]
[15,"贵州金鸿实业（集团）有限责任公司","项目手续办理人员",1,"高效推进项目审批，确保手续合法合规，保障项目顺利实施","战略发展部","本科及以上","工商管理、工程管理、市场营销","贵州省六盘水市水城区双水街道塔山印象","无","国有企业","胡珊",18084387335,"提供早、中餐"]
[16,"六盘水市水城区城市投资开发有限责任公司","技术员",2,"工程部的相关工作","工程部","本科及以上","工程管理","贵州省六盘水市水城区双水街道塔山印象","无","国有企业","胡珊",18084387335,"提供早、中餐"]
[17,"六盘水市水城区城市投资开发有限责任公司","档案管理员",1,"工程部档案的管理、整理等工作","工程部","本科及以上","图书馆学、档案学、信息资源管理","贵州省六盘水市水城区双水街道塔山印象","无","国有企业","胡珊",18084387335,"提供早、中餐"]
[18,"六盘水市水城区城市投资开发有限责任公司","项目部工作人员",1,"从事项目建设前期相关手续办理、项目管理等工作。","项目部","本科及以上","土木工程、城乡规划、工程管理、工程造价、建筑学、投资学、水利水电工程、人文地理与城乡规划","贵州省六盘水市水城区双水街道塔山印象","无","国有企业","胡珊",18084387335,"提供早、中餐"]
[19,"六盘水市水城区城市投资开发有限责任公司","招标部工作人员",1,"负责项目招投标等相关工作","招标部","本科及以上","工程管理、工程造价","贵州省六盘水市水城区双水街道塔山印象","无","国有企业","胡珊",18084387335,"提供早、中餐"]
[20,"六盘水市水城区城市投资开发有限责任公司","审计部工作人员",1,"负责项目预、结算等相关工作","审计部","本科及以上","工程管理、工程造价","贵州省六盘水市水城区双水街道塔山印象","无","国有企业","胡珊",18084387335,"提供早、中餐"]
[21,"六盘水市水城区宏盛建筑工程有限责任公司","行政专员",1,"负责协助完成综合部办公室日常工作","综合党建保障部","本科及以上","不限专业","贵州省六盘水市水城区双水街道塔山印象","熟练使用办公软件","国有企业","胡珊",18084387335,"提供早、中餐"]
[22,"六盘水市水城区宏盛建筑工程有限责任公司","施工员",2,"负责协助完成工程部各类审批资料","工程部","本科及以上","土木类","贵州省六盘水市水城区双水街道塔山印象","熟练使用办公软件","国有企业","胡珊",18084387335,"提供早、中餐"]
[23,"贵州水城聚康源饮业有限公司","瓶装水生产",1,"负责瓶装水生产设备操作","生产部","本科及以上","机电、电气、自动化、机械类相关专业","贵州省六盘水市水城区以朵街道白马洞组",null,"国有企业","王元菊","0858-8100310","提供早中餐60%补助，没有住宿。"]
[24,"贵州水城聚康源饮业有限公司","质检员",1,"负责瓶装水、桶装水生产现场质量把控","品控部","本科及以上","食品、生物、化工类相关专业","贵州省六盘水市水城区以朵街道白马洞组",null,"国有企业","王元菊","0858-8100310","提供早中餐60%补助，没有住宿。"]
[25,"贵州水城聚康源饮业有限公司","销售员",1,"负责销售宣传及产品推广","销售部","本科及以上","新媒体运营相关专业","贵州省六盘水市水城区以朵街道白马洞组",null,"国有企业","王元菊","0858-8100310","提供早中餐60%补助，没有住宿。"]
[26,"贵州水城聚康源饮业有限公司","销售员",2,"负责瓶、桶装水销售工作","销售部","本科及以上","市场营销相关专业","贵州省六盘水市水城区以朵街道白马洞组",null,"国有企业","王元菊","0858-8100310","提供早中餐60%补助，没有住宿。"]
[27,"贵州水城水务（集团）有限责任公司","工程项目专员",3,"项目现场、资料收集、信息报送等相关工作","战略发展规划部","本科及以上","工程类相关专业","水城区双水街道能投大厦","水利水电类专业或具有相应执业资格证书和职称证书优先。","国有企业","方婵娜",18708675873]
[28,"贵州水城水务（集团）有限责任公司","项目前期专员",2,"项目前期、资料收集、信息报送等相关工作","战略发展规划部","本科及以上","工程类相关专业","水城区双水街道能投大厦","水利水电及工程造价专业优先","国有企业","方婵娜",18708675873]
[29,"贵州水城水务（集团）有限责任公司","纪检专员",1,"纪检相关工作资料收集，编辑信息，报送信息等相关工作","纪检监察部","本科及以上","法学专业","水城区双水街道能投大厦","具有法律资格证优先","国有企业","方婵娜",18708675873]
[30,"贵州水城水务（集团）有限责任公司","出纳",5,"出纳相关资料整理，收集梳理等相关工作","财务融资部","本科及以上","会计专业及财务管理专业","水城区双水街道能投大厦","具有会计职称证书优先","国有企业","方婵娜",18708675873]
[31,"贵州水城水务（集团）有限责任公司","融资专员",2,"融资相关资料整理，收集梳理等相关工作","财务融资部","本科及以上","会计专业及财务管理专业","水城区双水街道能投大厦",null,"国有企业","方婵娜",18708675873]
[32,"贵州水城水务（集团）有限责任公司","法务专员",1,"法务相关资料整理，收集梳理等相关工作","法务审计部","本科及以上","法学专业","水城区双水街道能投大厦",null,"国有企业","方婵娜",18708675873]
[33,"贵州水城水务（集团）有限责任公司","党建专员",1,"党建相关工作资料收集，编辑信息，报送信息等相关工作","综合人事党建部","本科及以上","不限专业（汉语言文学、行政管理、工商管理、人事管理等相关专业优先）","水城区双水街道能投大厦","党员","国有企业","方婵娜",18708675873]
[34,"六盘水市水城区银针医疗器械有限公司","办公室工作人员",1,"负责公司后勤管理、资料收集、档案管理、会务等工作，完成领导交办其他事项","综合部","本科及以上","不限","贵州省六盘水市水城区双水街道双水社区人民路55号塔山印象","有较好的沟通协调能力，能熟练使用办公软件","国有企业","陈胜丽",18768755079,"提供早餐、中餐"]
[35,"六盘水市水城区银针医疗器械有限公司","党建工作人员",1,"负责党支部各项党务工作","综合部","本科及以上","中国语言文学类、法学类专业","贵州省六盘水市水城区双水街道双水社区人民路55号塔山印象","中共党员，有从事党务工作相关经验优先","国有企业","陈胜丽",18768755079,"提供早餐、中餐"]
[36,"六盘水市水城区银针医疗器械有限公司","市场部贸易专员",2,"‌医疗器械销售、市场开发、客户维护、产品推广、市场调研、销售策略制定及合规管理，涉及从前期客户接触到后期售后服务的全流程","市场1部","本科及以上","市场营销，医学技术类专业","贵州省六盘水市水城区双水街道双水社区人民路55号塔山印象","无","国有企业","陈胜丽",18768755079,"提供早餐、中餐"]
[37,"六盘水市水城区银针医疗器械有限公司","市场部贸易专员",2,"负责销售本公司医疗器械产品，做好客户维护工作，收集客户资质，完成领导安排的其他工作","市场2部","本科及以上","市场营销、医学类专业","贵州省六盘水市水城区双水街道双水社区人民路55号塔山印象","无","国有企业","陈胜丽",18768755079,"提供早餐、中餐"]
[38,"六盘水市水城区银针医疗器械有限公司","会计",1,"从事财务相关工作","财务及投融资部2室","本科及以上","工商管理类","贵州省六盘水市水城区双水街道双水社区人民路55号塔山印象","有相关会计工作经验优先","国有企业","陈胜丽",18768755079,"提供早餐、中餐"]
[39,"六盘水市水城区人民医院","儿科临床医学专业",1,"临床医师","儿科","本科","临床医学专业","水城区凉都大道106号","无","事业单位","杨涛",8933370]
[40,"六盘水市水城区人民医院","超声报告员",3,"报告员","B超室","大专及以上","医学相关专业","水城区凉都大道106号","无","事业单位","杨涛",8933370]
[41,"六盘水市水城区人民医院","放射技术操作",4,"DR、CT、MRI、DSA操作","放射科","大专及以上","医学影像诊断或技术","水城区凉都大道106号",null,"事业单位","杨涛",8933370]
[42,"六盘水市水城区人民医院","医生",2,"外科见习","外科","大专以上","临床","水城区凉都大道106号",null,"事业单位","杨涛",8933370]
[43,"六盘水市水城区人民医院","医师",4,"内科及外科诊\n诊室辅助工作","急诊科","本科","2名内科专业\n2名外科专业","水城区凉都大道106号",null,"事业单位","卢凤玲",18985373226]
[44,"六盘水市水城区人民医院","医师",3,"护士","急诊科","本科","护理学","水城区凉都大道106号",null,"事业单位","卢凤玲",18985373227]
[45,"贵州融锦文化传媒有限责任公司","会计",1,"负责日常生产数据的收集、负责日常现金及银行款项的收付工作，确保资金流动的准确性和合法性、协助完成会计报表及简单的税务申报工作","财务部","本科及以上","会计学、财务管理等相关专业","六盘水市水城区以朵社区白马洞组","无","国有企业","胡蓉",18685826875]
[46,"贵州水城经济开发区党政办公室","综合管理岗",3,"从事办公室综合工作","水城经济开发区投资促进服务中心","本科","不限","贵州省六盘水市水城经济开发区","取得相应学位证书","政府部门","石柱",18685882760]
[47,"六盘水市水城区第一小学","小学语文学科教师",4,"学科教育教学","六盘水市水城区第一小学","本科及以上","不限","六盘水市水城区双水街道广场社区南苑路（北）","具有相应学段相应学科教师资格证","公办小学","庄德洁",13885804675]
[48,"六盘水市水城区第一小学","小学数学学科教师",4,"学科教育教学","六盘水市水城区第一小学","本科及以上","不限","六盘水市水城区双水街道广场社区南苑路（北）","具有相应学段相应学科教师资格证","公办小学","庄德洁",13885804675]
[49,"六盘水市水城区第一小学","小学美术学科教师",3,"学科教育教学","六盘水市水城区第一小学","本科及以上","不限","六盘水市水城区双水街道广场社区南苑路（北）","具有相应学段相应学科教师资格证","公办小学","庄德洁",13885804675]
[50,"六盘水市水城区第一小学","小学音乐学科教师",3,"学科教育教学","六盘水市水城区第一小学","本科及以上","不限","六盘水市水城区双水街道广场社区南苑路（北）","具有相应学段相应学科教师资格证","公办小学","庄德洁",13885804675]
[51,"六盘水市水城区第一小学","小学体育与健康学科教师",4,"学科教育教学","六盘水市水城区第一小学","本科及以上","不限","六盘水市水城区双水街道广场社区南苑路（北）","具有相应学段相应学科教师资格证","公办小学","庄德洁",13885804675]
[52,"六盘水市水城区第二小学","小学语文学科教师",5,"学科教育教学","六盘水市水城区第二小学","本科及以上","不限","六盘水市水城区双水街道朝阳社区","具有相应学段相应学科教师资格证","公办小学","张忠会",18216679976]
[53,"六盘水市水城区第二小学","小学数学学科教师",5,"学科教育教学","六盘水市水城区第二小学","本科及以上","不限","六盘水市水城区双水街道朝阳社区","具有相应学段相应学科教师资格证","公办小学","张忠会",18216679976]
[54,"六盘水市水城区第二小学","小学英语学科教师",5,"学科教育教学","六盘水市水城区第二小学","本科及以上","不限","六盘水市水城区双水街道朝阳社区","具有相应学段相应学科教师资格证","公办小学","张忠会",18216679976]
[55,"六盘水市水城区第二小学","小学体育与健康学科教师",4,"学科教育教学","六盘水市水城区第二小学","本科及以上","不限","六盘水市水城区双水街道朝阳社区","具有相应学段相应学科教师资格证","公办小学","张忠会",18216679976]
[56,"六盘水市水城区第二小学","小学音乐学科教师",2,"学科教育教学","六盘水市水城区第二小学","本科及以上","不限","六盘水市水城区双水街道朝阳社区","具有相应学段相应学科教师资格证","公办小学","张忠会",18216679976]
[57,"六盘水市水城区第三小学","小学语文学科教师",3,"学科教育教学","六盘水市水城区第三小学","本科及以上","不限","六盘水市水城区以朵街道以朵大道","具有相应学段相应学科教师资格证","公办小学","刘红",13595892788]
[58,"六盘水市水城区第三小学","小学英语学科教师",3,"学科教育教学","六盘水市水城区第三小学","本科及以上","不限","六盘水市水城区以朵街道以朵大道","具有相应学段相应学科教师资格证","公办小学","刘红",13595892788]
[59,"六盘水市水城区第三小学","小学数学学科教师",3,"学科教育教学","六盘水市水城区第三小学","本科及以上","不限","六盘水市水城区以朵街道以朵大道","具有相应学段相应学科教师资格证","公办小学","刘红",13595892788]
[60,"六盘水市水城区第四小学","小学语文学科教师",4,"学科教育教学","六盘水市水城区第四小学","本科及以上","不限","六盘水市水城区第四小学","具有相应学段相应学科教师资格证","公办小学","周勇",18984418338]
[61,"六盘水市水城区第四小学","小学数学学科教师",4,"学科教育教学","六盘水市水城区第四小学","本科及以上","不限","六盘水市水城区第四小学","具有相应学段相应学科教师资格证","公办小学","周勇",18984418338]
[62,"六盘水市水城区第四小学","小学英语学科教师",1,"学科教育教学","六盘水市水城区第四小学","本科及以上","不限","六盘水市水城区第四小学","具有相应学段相应学科教师资格证","公办小学","周勇",18984418338]
[63,"六盘水市水城区第五小学","小学语文学科教师",8,"学科教育教学","六盘水市水城区第五小学","本科及以上","不限","水城区双水街道营盘路","具有相应学段相应学科教师资格证","公办小学","李松",13885875546]
[64,"六盘水市水城区第五小学","小学数学学科教师",3,"学科教育教学","六盘水市水城区第五小学","本科及以上","不限","水城区双水街道营盘路","具有相应学段相应学科教师资格证","公办小学","李松",13885875546]
[65,"六盘水市水城区第五小学","小学科学学科教师",2,"学科教育教学","六盘水市水城区第五小学","本科及以上","不限","水城区双水街道营盘路","具有相应学段相应学科教师资格证","公办小学","李松",13885875546]
[{"$f":"ROW()-2","v":66},"六盘水市水城区第六小学","小学语文学科教师",6,"学科教育教学","六盘水市水城区第六小学","本科及以上","不限","水城区双水街道小山社区","具有相应学段相应学科教师资格证","公办小学","李斯",15186330455]
[67,"六盘水市水城区第六小学","小学数学学科教师",2,"学科教育教学","六盘水市水城区第六小学","本科及以上","不限","水城区双水街道小山社区","具有相应学段相应学科教师资格证","公办小学","李斯",15186330455]
[68,"六盘水市水城区第六小学","小学英语学科教师",2,"学科教育教学","六盘水市水城区第六小学","本科及以上","不限","水城区双水街道小山社区","具有相应学段相应学科教师资格证","公办小学","李斯",15186330455]
[69,"六盘水市水城区第六小学","小学音乐学科教师",2,"学科教育教学","六盘水市水城区第六小学","本科及以上","不限","水城区双水街道小山社区","具有相应学段相应学科教师资格证","公办小学","李斯",15186330455]
[70,"六盘水市水城区第六小学","小学美术学科教师",2,"学科教育教学","六盘水市水城区第六小学","本科及以上","不限","水城区双水街道小山社区","具有相应学段相应学科教师资格证","公办小学","李斯",15186330455]
[71,"六盘水市水城区第六小学","小学体育与健康学科教师",2,"学科教育教学","六盘水市水城区第六小学","本科及以上","不限","水城区双水街道小山社区","具有相应学段相应学科教师资格证","公办小学","李斯",15186330455]
[72,"六盘水市水城区第六小学","小学心理健康学科教师",1,"学科教育教学","六盘水市水城区第六小学","本科及以上","不限","水城区双水街道小山社区","具有相应学段相应学科教师资格证","公办小学","李斯",15186330455]
[73,"六盘水市水城区第七小学","小学数学学科教师",2,"学科教育教学","六盘水市水城区第七小学","本科及以上","不限","六盘水市水城区第七小学","具有相应学段相应学科教师资格证","公办小学","朱航宇",13885842986]
[74,"六盘水市水城区第七小学","小学英语学科教师",1,"学科教育教学","六盘水市水城区第七小学","本科及以上","不限","六盘水市水城区第七小学","具有相应学段相应学科教师资格证","公办小学","朱航宇",13885842986]
[75,"六盘水市水城区第七小学","小学体育与健康学科教师",1,"学科教育教学","六盘水市水城区第七小学","本科及以上","不限","六盘水市水城区第七小学","具有相应学段相应学科教师资格证","公办小学","朱航宇",13885842986]
[76,"六盘水市水城区第九小学","小学数学学科教师",1,"学科教育教学","六盘水市水城区第九小学","本科及以上","不限","六盘水市水城区第九小学","具有相应学段相应学科教师资格证","公办小学","张京",18085838057]
[77,"六盘水市水城区第九小学","小学体育与健康学科教师",1,"学科教育教学","六盘水市水城区第九小学","本科及以上","不限","六盘水市水城区第九小学","具有相应学段相应学科教师资格证","公办小学","张京",18085838057]
[78,"六盘水市水城区第十八小学","小学音乐学科教师",2,"学科教育教学","六盘水市水城区第十八小学","本科及以上","不限","水城区石龙街道石桥社区九组","具有相应学段相应学科教师资格证","公办小学","邓明艳",13639172266]
[79,"六盘水市水城区第十八小学","小学体育与健康学科教师",1,"学科教育教学","六盘水市水城区第十八小学","本科及以上","不限","水城区石龙街道石桥社区九组","具有相应学段相应学科教师资格证","公办小学","邓明艳",13639172266]
[80,"六盘水市水城区第一实验中学","初中语文学科教师",2,"学科教育教学","六盘水市水城区第一实验中学","本科及以上","不限","六盘水市水城区以朵街道住武社区","具有相应学段相应学科教师资格证","公办初中","朱红艳",15597880212]
[81,"六盘水市水城区第一实验中学","初中英语学科教师",1,"学科教育教学","六盘水市水城区第一实验中学","本科及以上","不限","六盘水市水城区以朵街道住武社区","具有相应学段相应学科教师资格证","公办初中","朱红艳",15597880212]
[82,"六盘水市水城区第一实验中学","初中地理学科教师",2,"学科教育教学","六盘水市水城区第一实验中学","本科及以上","不限","六盘水市水城区以朵街道住武社区","具有相应学段相应学科教师资格证","公办初中","朱红艳",15597880212]
[83,"六盘水市水城区第一实验中学","初中音乐学科教师",1,"学科教育教学","六盘水市水城区第一实验中学","本科及以上","不限","六盘水市水城区以朵街道住武社区","具有相应学段相应学科教师资格证","公办初中","朱红艳",15597880212]
[84,"六盘水市水城区第一实验中学","初中体育学科教师",1,"学科教育教学","六盘水市水城区第一实验中学","本科及以上","不限","六盘水市水城区以朵街道住武社区","具有相应学段相应学科教师资格证","公办初中","朱红艳",15597880212]
[85,"六盘水市水城区第一实验中学","初中信息技术学科教师",2,"学科教育教学","六盘水市水城区第一实验中学","本科及以上","不限","六盘水市水城区以朵街道住武社区","具有相应学段相应学科教师资格证","公办初中","朱红艳",15597880212]
[86,"六盘水市水城区第一实验中学","初中语文学科教师",1,"学科教育教学","六盘水市水城区第一实验中学","本科及以上","不限","六盘水市水城区以朵街道住武社区","具有相应学段相应学科教师资格证","公办初中","朱红艳",15597880212]
[87,"六盘水市水城区第一实验中学","初中数学学科教师",1,"学科教育教学","六盘水市水城区第一实验中学","本科及以上","不限","六盘水市水城区以朵街道住武社区","具有相应学段相应学科教师资格证","公办初中","朱红艳",15597880212]
[88,"六盘水市水城区第一实验中学","初中英语学科教师",1,"学科教育教学","六盘水市水城区第一实验中学","本科及以上","不限","六盘水市水城区以朵街道住武社区","具有相应学段相应学科教师资格证","公办初中","朱红艳",15597880212]
[89,"六盘水市水城区第一实验中学","初中化学学科教师",1,"学科教育教学","六盘水市水城区第一实验中学","本科及以上","不限","六盘水市水城区以朵街道住武社区","具有相应学段相应学科教师资格证","公办初中","朱红艳",15597880212]
[90,"六盘水市第二十中学","初中数学学科教师",2,"学科教育教学","六盘水市第二十中学","本科及以上","不限","六盘水市水城区以朵街道以朵大道北侧","具有相应学段相应学科教师资格证","公办初中","代兴凯",13123688548]
[91,"六盘水市第二十中学","初中英语学科教师",1,"学科教育教学","六盘水市第二十中学","本科及以上","不限","六盘水市水城区以朵街道以朵大道北侧","具有相应学段相应学科教师资格证","公办初中","代兴凯",13123688548]
[92,"六盘水市第二十中学","初中化学学科教师",2,"学科教育教学","六盘水市第二十中学","本科及以上","不限","六盘水市水城区以朵街道以朵大道北侧","具有相应学段相应学科教师资格证","公办初中","代兴凯",13123688548]
[93,"六盘水市第十九中学","初中语文学科教师",3,"学科教育教学","六盘水市第十九中学","本科及以上","不限","六盘水市第十九中学","具有相应学段相应学科教师资格证","公办初中","冯权江",13765747519]
[94,"六盘水市第十九中学","初中英语学科教师",1,"学科教育教学","六盘水市第十九中学","本科及以上","不限","六盘水市第十九中学","具有相应学段相应学科教师资格证","公办初中","冯权江",13765747519]
[95,"六盘水市第十九中学","初中地理学科教师",2,"学科教育教学","六盘水市第十九中学","本科及以上","不限","六盘水市第十九中学","具有相应学段相应学科教师资格证","公办初中","冯权江",13765747519]
[96,"六盘水市第十九中学","初中音乐学科教师",1,"学科教育教学","六盘水市第十九中学","本科及以上","不限","六盘水市第十九中学","具有相应学段相应学科教师资格证","公办初中","冯权江",13765747519]
[97,"六盘水市第十九中学","初中体育学科教师",1,"学科教育教学","六盘水市第十九中学","本科及以上","不限","六盘水市第十九中学","具有相应学段相应学科教师资格证","公办初中","冯权江",13765747519]
[98,"六盘水市第十九中学","初中信息技术学科教师",2,"学科教育教学","六盘水市第十九中学","本科及以上","不限","六盘水市第十九中学","具有相应学段相应学科教师资格证","公办初中","冯权江",13765747519]
[99,"六盘水市水城区陡箐镇陡箐中学","初中语文学科教师",1,"学科教育教学","六盘水市水城区陡箐镇陡箐中学","本科及以上","不限","六盘水市水城区陡箐镇陡箐中学","具有相应学段相应学科教师资格证","公办初中","王明希",13984618998]
[100,"六盘水市水城区陡箐镇陡箐中学","初中数学学科教师",1,"学科教育教学","六盘水市水城区陡箐镇陡箐中学","本科及以上","不限","六盘水市水城区陡箐镇陡箐中学","具有相应学段相应学科教师资格证","公办初中","王明希",13984618998]
[101,"六盘水市水城区陡箐镇陡箐中学","初中英语学科教师",1,"学科教育教学","六盘水市水城区陡箐镇陡箐中学","本科及以上","不限","六盘水市水城区陡箐镇陡箐中学","具有相应学段相应学科教师资格证","公办初中","王明希",13984618998]
[102,"六盘水市水城区陡箐镇陡箐中学","初中化学学科教师",1,"学科教育教学","六盘水市水城区陡箐镇陡箐中学","本科及以上","不限","六盘水市水城区陡箐镇陡箐中学","具有相应学段相应学科教师资格证","公办初中","王明希",13984618998]
[103,"六盘水市水城区果布戛乡果布戛小学","小学数学学科教师",2,"学科教育教学","六盘水市水城区果布戛乡果布戛小学","大专及以上","不限","六盘水市水城区果布戛乡兴隆村场坝组","具有相应学段相应学科教师资格证","公办小学","肖大伟",17716612288]
[104,"六盘水市水城区果布戛乡高石小学","小学语文学科教师",1,"学科教育教学","六盘水市水城区果布戛乡高石小学","大专及以上","不限","六盘水市水城区果布戛乡枫香村大水井组","具有相应学段相应学科教师资格证","公办小学","叶支品",13595811005]
[105,"六盘水市水城区果布戛乡果布戛中学","初中数学学科教师",1,"学科教育教学","六盘水市水城区果布戛乡果布戛中学","本科及以上","不限","六盘水市水城区果布戛乡兴隆村场坝组","具有相应学段相应学科教师资格证","公办初中","朱平",13595805972]
[106,"六盘水市水城区猴场乡猴场小学","小学语文学科教师",1,"学科教育教学","六盘水市水城区猴场乡猴场小学","大专及以上","不限","六盘水市水城区猴场乡猴场村四组","具有相应学段相应学科教师资格证","公办小学","张林",13985907573]
[107,"六盘水市水城区新街乡新街小学","小学数学学科教师",2,"学科教育教学","六盘水市水城区新街乡新街小学","本科及以上","不限","六盘水市水城区新街乡新街村街上组","具有相应学段相应学科教师资格证","公办小学","李林",18984413703]
[108,"六盘水市水城区新街乡中心幼儿园","幼儿园教师岗位",2,"学科教育教学","六盘水市水城区新街乡中心幼儿园","大专及以上","不限","六盘水市水城区新街乡新街村街上组","具有相应学段相应学科教师资格证","公办幼儿园","李林",18984413703]
[109,"六盘水市水城区杨梅乡杨梅中学","初中体育学科教师",2,"学科教育教学","六盘水市水城区杨梅乡杨梅中学","本科及以上","不限","六盘水市水城区杨梅乡杨梅村杨梅中学","具有相应学段相应学科教师资格证","公办初中","黄富廉",18985943987]
[110,"六盘水市水城区杨梅乡杨梅中学","初中英语学科教师",1,"学科教育教学","六盘水市水城区杨梅乡杨梅中学","本科及以上","不限","六盘水市水城区杨梅乡杨梅村杨梅中学","具有相应学段相应学科教师资格证","公办初中","黄富廉",18985943987]
[111,"六盘水市水城区杨梅乡杉林希望小学","小学英语学科教师",1,"学科教育教学","六盘水市水城区杨梅乡杉林希望小学","本科及以上","不限","六盘水市水城区杨梅乡姬官营村街上组","具有相应学段相应学科教师资格证","公办小学","罗登虎",18586471789]
[112,"六盘水市水城区野钟乡常明小学","小学语文学科教师",1,"学科教育教学","六盘水市水城区野钟乡常明小学","本科及以上","不限","六盘水市水城区野钟乡常明村街上组","具有相应学段相应学科教师资格证","公办小学","杨明永",18786723637]
[113,"六盘水市水城区野钟乡常明小学","小学数学学科教师",1,"学科教育教学","六盘水市水城区野钟乡常明小学","本科及以上","不限","六盘水市水城区野钟乡常明村街上组","具有相应学段相应学科教师资格证","公办小学","杨明永",18786723637]
[114,"六盘水市水城区野钟乡常明小学","小学英语学科教师",1,"学科教育教学","六盘水市水城区野钟乡常明小学","本科及以上","不限","六盘水市水城区野钟乡常明村街上组","具有相应学段相应学科教师资格证","公办小学","杨明永",18786723637]
[115,"六盘水市水城区野钟乡常明小学","小学科学学科教师",1,"学科教育教学","六盘水市水城区野钟乡常明小学","本科及以上","不限","六盘水市水城区野钟乡常明村街上组","具有相应学段相应学科教师资格证","公办小学","杨明永",18786723637]
[116,"六盘水市水城区野钟乡常明小学","小学信息科技学科教师",1,"学科教育教学","六盘水市水城区野钟乡常明小学","本科及以上","不限","六盘水市水城区野钟乡常明村街上组","具有相应学段相应学科教师资格证","公办小学","杨明永",18786723637]
[117,"六盘水市水城区野钟乡野钟中学","初中英语学科教师",1,"学科教育教学","六盘水市水城区野钟乡野钟中学","本科及以上","不限","六盘水市水城区野钟乡常明村四方井组","具有相应学段相应学科教师资格证","公办初中","胡兴忠",15597892848]
[118,"六盘水市水城区野钟乡野钟中学","初中历史学科教师",1,"学科教育教学","六盘水市水城区野钟乡野钟中学","本科及以上","不限","六盘水市水城区野钟乡常明村四方井组","具有相应学段相应学科教师资格证","公办初中","胡兴忠",15597892848]
[119,"六盘水市水城区野钟乡野钟中学","初中道德与法治教师",1,"学科教育教学","六盘水市水城区野钟乡野钟中学","本科及以上","不限","六盘水市水城区野钟乡常明村四方井组","具有相应学段相应学科教师资格证","公办初中","胡兴忠",15597892848]
[120,"六盘水市水城区野钟乡野钟中学","初中地理学科教师",1,"学科教育教学","六盘水市水城区野钟乡野钟中学","本科及以上","不限","六盘水市水城区野钟乡常明村四方井组","具有相应学段相应学科教师资格证","公办初中","胡兴忠",15597892848]
[121,"六盘水市水城区顺场乡法德小学","小学语文学科教师",1,"学科教育教学","六盘水市水城区顺场乡法德小学","大专及以上","不限","六盘水市水城区顺场乡法德小学","具有相应学段相应学科教师资格证","公办小学","付永良",18748786737]
[122,"六盘水市水城区顺场乡法德小学","小学英语学科教师",1,"学科教育教学","六盘水市水城区顺场乡法德小学","大专及以上","不限","六盘水市水城区顺场乡法德小学","具有相应学段相应学科教师资格证","公办小学","付永良",18748786737]
[123,"六盘水市水城区比德镇立火小学","小学语文学科教师",1,"学科教育教学","六盘水市水城区比德镇比德中学","本科及以上","不限","六盘水市水城区比德镇大寨村","具有相应学段相应学科教师资格证","公办小学","左代陈",15117464927]
[124,"六盘水市水城区比德镇比德小学","小学语文学科教师",1,"学科教育教学","六盘水市水城区比德镇比德小学","本科及以上","不限","六盘水市水城区比德镇比德村","具有相应学段相应学科教师资格证","公办小学","左代陈",15117464927]
[125,"六盘水市水城区发耳镇第二中学","初中语文学科教师",1,"学科教育教学","六盘水市水城区发耳镇第二中学","本科及以上","不限","六盘水市水城区发耳镇大寨居委会大寨组","具有相应学段相应学科教师资格证","公办初中","段开跃",15985591222]
[126,"六盘水市水城区鸡场镇鸡场中学","初中美术学科教师",1,"学科教育教学","六盘水市水城区鸡场镇鸡场中学","本科及以上","不限","六盘水市水城区鸡场镇酉福社区","具有相应学段相应学科教师资格证","公办初中","吴旭",13639172726]
[127,"六盘水市水城区新桥街道新桥小学","小学音乐学科教师",1,"学科教育教学","六盘水市水城区新桥街道新桥小学","大专及以上","不限","水城区新桥街道新业社区","具有相应学段相应学科教师资格证","公办小学","黄祥",18985946950]
[128,"六盘水市水城区新桥街道新桥小学","小学美术学科教师",1,"学科教育教学","六盘水市水城区新桥街道新桥小学","大专及以上","不限","水城区新桥街道新业社区","具有相应学段相应学科教师资格证","公办小学","黄祥",18985946950]
[129,"六盘水市水城区新桥街道新桥小学","小学体育学科教师",1,"学科教育教学","六盘水市水城区新桥街道新桥小学","大专及以上","不限","水城区新桥街道新业社区","具有相应学段相应学科教师资格证","公办小学","黄祥",18985946950]
[{"$f":"ROW()-2","v":130},"六盘水市水城区新桥街道新桥小学","小学英语学科教师",1,"学科教育教学","六盘水市水城区新桥街道新桥小学","大专及以上","不限","水城区新桥街道新业社区","具有相应学段相应学科教师资格证","公办小学","黄祥",18985946950]
[131,"六盘水市水城区教育局","办公室工作人员",2,"文秘工作","办公室","本科","汉语言文学及相关专业","六盘水市水城区教育局",null,"政府部门","费春","08586664746"]
[132,"六盘水市水城区教育局","人事股工作人员",2,"日常工作","人事股","本科","汉语言文学及相关专业","六盘水市水城区教育局","中共党员","政府部门","费春","08586664746"]
[133,"六盘水市水城区教育局","计财股工作人员",3,"统计工作","计财股","本科","不限","六盘水市水城区教育局",null,"政府部门","费春","08586664746"]
[134,"六盘水市水城区教育局","教育股工作人员",3,"从事基地教育管理","教育股","本科","不限","六盘水市水城区教育局",null,"政府部门","费春","08586664746"]
[135,"六盘水市中医医院","门诊部护理",2,"护理","导诊","大学本科","护理学","六盘水市水城区双水街道金竹林社区人民路25号","1.具有护士资格证书及护士执业证;\n2.工作条理清晰，有一定的协调能力，责任心强；\n3.中医药大学毕业者优先","事业单位","梅华",18985375420]
[136,"六盘水市水城区妇幼保健院","临床检验",4,"按照水城区妇保院相关岗位职责执行","检验科","本科","医学检验专业","六盘水市水城区双水街道水黄路两江公园对面","能吃苦耐劳，有敬业精神，在三级以上医疗机构实习经验","事业单位","孙海波",15585843799]
[137,"六盘水市水城区妇幼保健院","医学影像",3,"按照水城区妇保院相关岗位职责执行","放射科和功能科","本科","医学影像学及相关专业","六盘水市水城区双水街道水黄路两江公园对面","能吃苦耐劳，有敬业精神，在三级以上医疗机构实习经验","事业单位","孙海波",15585843799]
[138,"六盘水市水城区妇幼保健院","护理",9,"按照水城区妇保院相关岗位职责执行","妇科、产科、儿科","本科","护理学","六盘水市水城区双水街道水黄路两江公园对面","能吃苦耐劳，有敬业精神，在三级以上医疗机构实习经验","事业单位","孙海波",15585843799]
[139,"六盘水市水城区妇幼保健院","信息",1,"按照水城区妇保院相关岗位职责执行","信息科","本科","计算机网络技术、数据科学与大数据技术及相关专业","六盘水市水城区双水街道水黄路两江公园对面","能吃苦耐劳，有敬业精神，在三级以上医疗机构实习经验","事业单位","孙海波",15585843799]
[140,"六盘水市水城区妇幼保健院","临床",3,"按照水城区妇保院相关岗位职责执行","妇科、产科、病案科","本科","临床医学","六盘水市水城区双水街道水黄路两江公园对面","能吃苦耐劳，有敬业精神，在三级以上医疗机构实习经验","事业单位","孙海波",15585843799]
[141,"六盘水市水城区妇幼保健院","医保",2,"按照水城区妇保院相关岗位职责执行","医保科","本科","临床医学、医学统计学、法学专业","六盘水市水城区双水街道水黄路两江公园对面","能吃苦耐劳，有敬业精神，在三级以上医疗机构实习经验","事业单位","孙海波",15585843799]
[142,"六盘水市水城区妇幼保健院","药剂",1,"按照水城区妇保院相关岗位职责执行","药剂科","本科","药学专业","六盘水市水城区双水街道水黄路两江公园对面","能吃苦耐劳，有敬业精神，在三级以上医疗机构实习经验","事业单位","孙海波",15585843799]
[143,"六盘水市水城区妇幼保健院","导医",1,"按照水城区妇保院相关岗位职责执行","导诊","大专及以上","护理专业或护理学","六盘水市水城区双水街道水黄路两江公园对面","能吃苦耐劳，有敬业精神，在三级以上医疗机构实习经验","事业单位","孙海波",15585843799]
[144,"六盘水市水城区妇幼保健院","口腔",1,"按照水城区妇保院相关岗位职责执行","儿保科","大专及以上","口腔医学专业","六盘水市水城区双水街道水黄路两江公园对面","能吃苦耐劳，有敬业精神，在三级以上医疗机构实习经验","事业单位","孙海波",15585843799]
["人数合计",null,null,{"$f":"SUM(D3:D146)","v":287}]